[Event "Late-Titled-Tuesday-Blitz-May-07-2024"]
[Site "Chess.com"]
[Date "2024.05.07"]
[Round "9"]
[White "schondeln"]
[Black "GWR2024"]
[Result "0-1"]
[WhiteElo "2334"]
[BlackElo "2185"]
[TimeControl "180+1"]
[EndTime "15:46:00 PDT"]
[Termination "GWR2024 won on time"]

1. e4 {[%clk 0:03:00.9]} 1... e5 {[%clk 0:02:50.3]} 2. Nf3 {[%clk 0:02:59.8]}
2... d5 {[%clk 0:02:49.6]} 3. exd5 {[%clk 0:02:57]} 3... e4 {[%clk 0:02:50.4]}
4. Qe2 {[%clk 0:02:48.7]} 4... Nf6 {[%clk 0:02:50.1]} 5. d3 {[%clk 0:02:43.6]}
5... Bb4+ {[%clk 0:02:49.3]} 6. c3 {[%clk 0:02:38.3]} 6... O-O {[%clk
0:02:50.2]} 7. dxe4 {[%clk 0:02:22.7]} 7... Bc5 {[%clk 0:02:49]} 8. Bg5 {[%clk
0:02:04]} 8... h6 {[%clk 0:02:47.9]} 9. Bxf6 {[%clk 0:02:03.5]} 9... Qxf6 {[%clk
0:02:48.8]} 10. Nbd2 {[%clk 0:02:03.4]} 10... Bg4 {[%clk 0:02:47.4]} 11. O-O-O
{[%clk 0:02:02.1]} 11... Nd7 {[%clk 0:02:41.5]} 12. h3 {[%clk 0:02:01.9]} 12...
Bh5 {[%clk 0:02:38.3]} 13. Nb3 {[%clk 0:01:35.1]} 13... Bd6 {[%clk 0:02:31.8]}
14. g4 {[%clk 0:01:07]} 14... Bg6 {[%clk 0:02:30.6]} 15. Nfd2 {[%clk 0:01:07.2]}
15... a5 {[%clk 0:02:29]} 16. Nd4 {[%clk 0:01:00.9]} 16... a4 {[%clk 0:02:26.6]}
17. a3 {[%clk 0:01:00.5]} 17... Nc5 {[%clk 0:02:20.3]} 18. Bg2 {[%clk
0:00:58.4]} 18... Rfe8 {[%clk 0:02:17.9]} 19. f3 {[%clk 0:00:57.8]} 19... Be5
{[%clk 0:02:09.8]} 20. Qe3 {[%clk 0:00:40.2]} 20... Bf4 {[%clk 0:02:08.2]} 21.
Qe2 {[%clk 0:00:27.5]} 21... Qd6 {[%clk 0:02:02.5]} 22. Bf1 {[%clk 0:00:15.9]}
22... Rad8 {[%clk 0:01:52.1]} 23. Qc4 {[%clk 0:00:15.2]} 23... c6 {[%clk
0:01:45.8]} 24. Kb1 {[%clk 0:00:12.4]} 24... b5 {[%clk 0:01:44.3]} 25. Qa2
{[%clk 0:00:10.2]} 25... cxd5 {[%clk 0:01:30.4]} 26. Ka1 {[%clk 0:00:07.3]}
26... Bxd2 {[%clk 0:01:24]} 27. Rxd2 {[%clk 0:00:07.4]} 27... dxe4 {[%clk
0:01:24.3]} 28. Bxb5 {[%clk 0:00:04.8]} 28... e3 {[%clk 0:01:19.8]} 29. Re2
{[%clk 0:00:03.6]} 29... Re7 {[%clk 0:01:14.1]} 30. Rhe1 {[%clk 0:00:02.6]}
30... Qb6 {[%clk 0:00:52.9]} 31. Qc4 {[%clk 0:00:02.3]} 31... Rxd4 {[%clk
0:00:47.4]} 32. cxd4 {[%clk 0:00:00.9]} 32... Nb3+ {[%clk 0:00:48.3]} 33. Ka2
{[%clk 0:00:00.6]} 33... Nxd4 {[%clk 0:00:46.3]} 34. Qc5 {[%clk 0:00:00.2]}
34... Qxc5 {[%clk 0:00:45.1]} 0-1

[Event "Late-Titled-Tuesday-Blitz-May-07-2024"]
[Site "Chess.com"]
[Date "2024.05.07"]
[Round "9"]
[White "LiemLe"]
[Black "Mischuk_D"]
[Result "1-0"]
[WhiteElo "3056"]
[BlackElo "2805"]
[TimeControl "180+1"]
[EndTime "15:46:01 PDT"]
[Termination "LiemLe won by resignation"]

1. Nf3 {[%clk 0:03:00.9]} 1... d5 {[%clk 0:02:59.4]} 2. e3 {[%clk 0:03:00.8]}
2... Nf6 {[%clk 0:02:55.4]} 3. c4 {[%clk 0:03:01.2]} 3... e6 {[%clk 0:02:53.7]}
4. Nc3 {[%clk 0:03:01.4]} 4... a6 {[%clk 0:02:49.4]} 5. b3 {[%clk 0:03:01]} 5...
Bd6 {[%clk 0:02:49.1]} 6. Bb2 {[%clk 0:03:00.9]} 6... O-O {[%clk 0:02:49.3]} 7.
Rc1 {[%clk 0:02:59.9]} 7... b6 {[%clk 0:02:49.1]} 8. cxd5 {[%clk 0:03:00.3]}
8... Nxd5 {[%clk 0:02:48]} 9. Nxd5 {[%clk 0:02:53.6]} 9... exd5 {[%clk
0:02:47.7]} 10. g3 {[%clk 0:02:41.8]} 10... Nd7 {[%clk 0:02:35.6]} 11. Bg2
{[%clk 0:02:36.8]} 11... Nf6 {[%clk 0:02:32]} 12. O-O {[%clk 0:02:33.9]} 12...
h6 {[%clk 0:02:27.3]} 13. Ne5 {[%clk 0:02:19]} 13... Bb7 {[%clk 0:01:43.6]} 14.
Nc6 {[%clk 0:02:10.6]} 14... Qd7 {[%clk 0:01:37.4]} 15. Bxf6 {[%clk 0:01:50.6]}
15... Bxc6 {[%clk 0:01:37]} 16. Rxc6 {[%clk 0:01:51.5]} 16... Qxc6 {[%clk
0:01:23.8]} 17. Qg4 {[%clk 0:01:51.4]} 17... g6 {[%clk 0:01:24.1]} 18. Qh4
{[%clk 0:01:51.7]} 18... Ba3 {[%clk 0:01:11.2]} 19. Bxd5 {[%clk 0:01:50.4]}
19... Qd6 {[%clk 0:01:07.7]} 20. Bxa8 {[%clk 0:01:44]} 20... Rxa8 {[%clk
0:01:07.6]} 21. Bc3 {[%clk 0:01:26.1]} 21... h5 {[%clk 0:01:01.7]} 22. g4 {[%clk
0:01:16.6]} 22... Qe7 {[%clk 0:00:54.9]} 23. Bf6 {[%clk 0:01:15.1]} 23... Qc5
{[%clk 0:00:46.4]} 24. d4 {[%clk 0:01:01.6]} 24... Qd5 {[%clk 0:00:46.6]} 25.
gxh5 {[%clk 0:01:01.6]} 25... Qxh5 {[%clk 0:00:43]} 26. Qxh5 {[%clk 0:01:01.6]}
26... gxh5 {[%clk 0:00:43.9]} 27. Kg2 {[%clk 0:01:00.1]} 27... Bd6 {[%clk
0:00:44]} 28. f4 {[%clk 0:00:58.7]} 28... Kh7 {[%clk 0:00:42.4]} 29. e4 {[%clk
0:00:55.2]} 29... Rg8+ {[%clk 0:00:34.3]} 30. Kf3 {[%clk 0:00:55.1]} 30... Bb4
{[%clk 0:00:24.5]} 31. Rc1 {[%clk 0:00:48.6]} 31... c5 {[%clk 0:00:20.6]} 32. d5
{[%clk 0:00:48.8]} 32... Bd2 {[%clk 0:00:14.7]} 33. Rd1 {[%clk 0:00:46.4]} 33...
Ba5 {[%clk 0:00:13]} 34. d6 {[%clk 0:00:46.6]} 34... b5 {[%clk 0:00:13.7]} 35.
Rd5 {[%clk 0:00:43.9]} 35... Bd8 {[%clk 0:00:13.9]} 36. Rxh5+ {[%clk 0:00:43.6]}
36... Kg6 {[%clk 0:00:13.7]} 37. Rg5+ {[%clk 0:00:44.1]} 1-0

[Event "Late-Titled-Tuesday-Blitz-May-07-2024"]
[Site "Chess.com"]
[Date "2024.05.07"]
[Round "9"]
[White "Mikhail_Golubev"]
[Black "Axf7"]
[Result "1-0"]
[WhiteElo "2613"]
[BlackElo "2080"]
[TimeControl "180+1"]
[EndTime "15:46:01 PDT"]
[Termination "Mikhail_Golubev won on time"]

1. e4 {[%clk 0:03:00.9]} 1... d6 {[%clk 0:02:59.1]} 2. d4 {[%clk 0:02:59.8]}
2... Nf6 {[%clk 0:02:59.3]} 3. Nc3 {[%clk 0:03:00.1]} 3... g6 {[%clk 0:02:59.6]}
4. g3 {[%clk 0:02:56]} 4... Bg7 {[%clk 0:02:45.6]} 5. Bg2 {[%clk 0:02:55.8]}
5... O-O {[%clk 0:02:45.6]} 6. Nge2 {[%clk 0:02:55.7]} 6... e5 {[%clk
0:02:43.5]} 7. O-O {[%clk 0:02:54.4]} 7... Nc6 {[%clk 0:02:43.5]} 8. h3 {[%clk
0:02:40.7]} 8... exd4 {[%clk 0:02:31.8]} 9. Nxd4 {[%clk 0:02:40.6]} 9... Nxe4
{[%clk 0:02:16.2]} 10. Nxc6 {[%clk 0:02:34.3]} 10... Nxc3 {[%clk 0:02:16]} 11.
Nxd8 {[%clk 0:02:31.6]} 11... Nxd1 {[%clk 0:02:15.7]} 12. Nxb7 {[%clk
0:02:22.1]} 12... Nxb2 {[%clk 0:01:42.5]} 13. Bxb2 {[%clk 0:02:08.9]} 13... Bxb2
{[%clk 0:01:24.3]} 14. Rab1 {[%clk 0:02:08.6]} 14... Bxb7 {[%clk 0:00:58.8]} 15.
Bxb7 {[%clk 0:02:04.8]} 15... Bd4 {[%clk 0:00:52.7]} 16. Bxa8 {[%clk 0:02:04.3]}
16... Rxa8 {[%clk 0:00:52.9]} 17. Rfe1 {[%clk 0:02:00.9]} 17... Kf8 {[%clk
0:00:51.8]} 18. Kg2 {[%clk 0:01:59.7]} 18... h5 {[%clk 0:00:51.8]} 19. f4 {[%clk
0:01:49.4]} 19... Bb6 {[%clk 0:00:47.9]} 20. Kf3 {[%clk 0:01:49.3]} 20... d5
{[%clk 0:00:47.1]} 21. Re5 {[%clk 0:01:44.5]} 21... Rd8 {[%clk 0:00:45.9]} 22.
Rd1 {[%clk 0:01:42.9]} 22... c6 {[%clk 0:00:43.3]} 23. c4 {[%clk 0:01:18.3]}
23... Bc7 {[%clk 0:00:27.4]} 24. Re2 {[%clk 0:00:57.6]} 24... Bb6 {[%clk
0:00:17.1]} 25. Red2 {[%clk 0:00:42.6]} 25... d4 {[%clk 0:00:14.8]} 26. c5
{[%clk 0:00:38.4]} 26... Bxc5 {[%clk 0:00:14.5]} 27. Rc2 {[%clk 0:00:38]} 27...
Rd5 {[%clk 0:00:10.1]} 28. Ke4 {[%clk 0:00:31.4]} 1-0

[Event "Late-Titled-Tuesday-Blitz-May-07-2024"]
[Site "Chess.com"]
[Date "2024.05.07"]
[Round "9"]
[White "Meri-Arabidze"]
[Black "HaryKane"]
[Result "1-0"]
[WhiteElo "2729"]
[BlackElo "2546"]
[TimeControl "180+1"]
[EndTime "15:46:04 PDT"]
[Termination "Meri-Arabidze won by resignation"]

1. Nf3 {[%clk 0:03:00.9]} 1... e6 {[%clk 0:02:56.8]} 2. c4 {[%clk 0:03:01.1]}
2... f5 {[%clk 0:02:54.5]} 3. g3 {[%clk 0:03:01.1]} 3... Nf6 {[%clk 0:02:54.9]}
4. Bg2 {[%clk 0:03:01.7]} 4... d6 {[%clk 0:02:46.4]} 5. O-O {[%clk 0:03:02]}
5... e5 {[%clk 0:02:46.4]} 6. d3 {[%clk 0:03:00.8]} 6... Be7 {[%clk 0:02:46.5]}
7. b4 {[%clk 0:03:00.7]} 7... O-O {[%clk 0:02:45.7]} 8. Bb2 {[%clk 0:03:00.8]}
8... Qe8 {[%clk 0:02:42.4]} 9. Nc3 {[%clk 0:02:58.3]} 9... f4 {[%clk 0:02:37.4]}
10. Qb3 {[%clk 0:02:46.9]} 10... Kh8 {[%clk 0:02:33.6]} 11. Nd5 {[%clk
0:02:41.9]} 11... Bd8 {[%clk 0:02:27.6]} 12. Rac1 {[%clk 0:02:28.2]} 12... Qh5
{[%clk 0:02:21.7]} 13. c5 {[%clk 0:01:55.1]} 13... fxg3 {[%clk 0:02:19.7]} 14.
fxg3 {[%clk 0:01:45.7]} 14... Bh3 {[%clk 0:02:12.4]} 15. cxd6 {[%clk 0:01:38.2]}
15... cxd6 {[%clk 0:02:11.5]} 16. Nxf6 {[%clk 0:01:36.9]} 16... Rxf6 {[%clk
0:01:50.3]} 17. Bxh3 {[%clk 0:01:21.4]} 17... Qxh3 {[%clk 0:01:51.2]} 18. Ng5
{[%clk 0:01:12.4]} 18... Rxf1+ {[%clk 0:00:32.7]} 19. Rxf1 {[%clk 0:01:12]}
19... Qxf1+ {[%clk 0:00:26.3]} 20. Kxf1 {[%clk 0:01:11.9]} 20... Bxg5 {[%clk
0:00:27]} 21. Qf7 {[%clk 0:01:01.3]} 21... Nc6 {[%clk 0:00:24.3]} 22. Qxb7
{[%clk 0:00:59.9]} 22... Rf8+ {[%clk 0:00:24.3]} 23. Kg2 {[%clk 0:00:55.8]}
23... Nd8 {[%clk 0:00:20.2]} 24. Qxa7 {[%clk 0:00:53.8]} 24... h5 {[%clk
0:00:19.5]} 25. h4 {[%clk 0:00:53.6]} 25... Bh6 {[%clk 0:00:16.9]} 26. a4 {[%clk
0:00:48.3]} 26... Nc6 {[%clk 0:00:12.8]} 27. Qb7 {[%clk 0:00:46]} 27... Nd4
{[%clk 0:00:11.3]} 28. Bxd4 {[%clk 0:00:45.8]} 28... exd4 {[%clk 0:00:12.2]} 29.
Qd5 {[%clk 0:00:40.8]} 29... Re8 {[%clk 0:00:11]} 30. Qxd4 {[%clk 0:00:32.3]}
30... Rxe2+ {[%clk 0:00:10.3]} 31. Kf3 {[%clk 0:00:32.6]} 31... Ra2 {[%clk
0:00:05.8]} 32. a5 {[%clk 0:00:30.7]} 1-0

[Event "Late-Titled-Tuesday-Blitz-May-07-2024"]
[Site "Chess.com"]
[Date "2024.05.07"]
[Round "9"]
[White "FredddieCroderg"]
[Black "MiguelBestard1981"]
[Result "1-0"]
[WhiteElo "2392"]
[BlackElo "2188"]
[TimeControl "180+1"]
[EndTime "15:46:04 PDT"]
[Termination "FredddieCroderg won on time"]

1. e4 {[%clk 0:03:00.5]} 1... e5 {[%clk 0:02:58.1]} 2. Qf3 {[%clk 0:02:59.4]}
2... Nf6 {[%clk 0:02:51.9]} 3. Bc4 {[%clk 0:02:58.2]} 3... Bc5 {[%clk
0:02:50.6]} 4. c3 {[%clk 0:02:55.7]} 4... O-O {[%clk 0:02:48.8]} 5. h3 {[%clk
0:02:55.6]} 5... d5 {[%clk 0:02:48.3]} 6. exd5 {[%clk 0:02:52.9]} 6... e4 {[%clk
0:02:48]} 7. Qg3 {[%clk 0:02:50.4]} 7... Bd6 {[%clk 0:02:36.7]} 8. Qh4 {[%clk
0:02:48.9]} 8... Nbd7 {[%clk 0:02:25.9]} 9. d4 {[%clk 0:02:48]} 9... exd3 {[%clk
0:02:22.2]} 10. Bxd3 {[%clk 0:02:47.5]} 10... Ne5 {[%clk 0:02:22.1]} 11. Bc2
{[%clk 0:02:40.1]} 11... Re8 {[%clk 0:02:18.8]} 12. Ne2 {[%clk 0:02:38.1]} 12...
Ng6 {[%clk 0:02:15.4]} 13. Qd4 {[%clk 0:02:32.5]} 13... Be5 {[%clk 0:02:11.7]}
14. Qd1 {[%clk 0:02:28.4]} 14... Nxd5 {[%clk 0:02:05.5]} 15. O-O {[%clk
0:02:27.6]} 15... Be6 {[%clk 0:01:43.2]} 16. Nd4 {[%clk 0:02:23.8]} 16... Bxh3
{[%clk 0:01:26.6]} 17. gxh3 {[%clk 0:02:21.6]} 17... Qh4 {[%clk 0:01:26]} 18.
Qf3 {[%clk 0:02:17.9]} 18... Ndf4 {[%clk 0:01:18.2]} 19. Bf5 {[%clk 0:02:08.8]}
19... Bxd4 {[%clk 0:00:52.8]} 20. cxd4 {[%clk 0:02:05.7]} 20... Ne2+ {[%clk
0:00:52.6]} 21. Kh2 {[%clk 0:01:51.2]} 21... Nxd4 {[%clk 0:00:49.5]} 22. Qg4
{[%clk 0:01:33.2]} 22... Nxf5 {[%clk 0:00:23]} 23. Qxf5 {[%clk 0:01:31.6]} 23...
Re5 {[%clk 0:00:20.4]} 24. Qg4 {[%clk 0:01:27.4]} 24... Rae8 {[%clk 0:00:19.8]}
25. Qxh4 {[%clk 0:01:25.2]} 25... Nxh4 {[%clk 0:00:19.4]} 26. Nc3 {[%clk
0:01:24.4]} 26... Nf3+ {[%clk 0:00:13.4]} 27. Kg3 {[%clk 0:01:22.8]} 27... Rf5
{[%clk 0:00:12.6]} 28. Bf4 {[%clk 0:01:17.4]} 28... g5 {[%clk 0:00:09.7]} 29.
Kxf3 {[%clk 0:01:14.2]} 29... Rxf4+ {[%clk 0:00:08.2]} 30. Kg3 {[%clk
0:01:13.2]} 30... Re6 {[%clk 0:00:07.1]} 31. Rae1 {[%clk 0:01:09.8]} 31... Rh6
{[%clk 0:00:06.5]} 32. Re4 {[%clk 0:01:02.8]} 32... Rff6 {[%clk 0:00:02.2]} 33.
Nd5 {[%clk 0:00:59.9]} 33... Rd6 {[%clk 0:00:00.7]} 34. Ne7+ {[%clk 0:00:58.3]}
34... Kf8 {[%clk 0:00:00.8]} 35. Nf5 {[%clk 0:00:58.1]} 35... Rde6 {[%clk
0:00:00.7]} 36. Rfe1 {[%clk 0:00:51.6]} 1-0

[Event "Late-Titled-Tuesday-Blitz-May-07-2024"]
[Site "Chess.com"]
[Date "2024.05.07"]
[Round "9"]
[White "NovakRatko"]
[Black "rdarruda"]
[Result "0-1"]
[WhiteElo "2405"]
[BlackElo "2558"]
[TimeControl "180+1"]
[EndTime "15:46:06 PDT"]
[Termination "rdarruda won by resignation"]

1. d4 {[%clk 0:02:59.8]} 1... Nf6 {[%clk 0:02:38.6]} 2. c4 {[%clk 0:02:59.6]}
2... e5 {[%clk 0:02:38.2]} 3. dxe5 {[%clk 0:02:58.8]} 3... Ne4 {[%clk
0:02:37.8]} 4. Nf3 {[%clk 0:02:58.2]} 4... Nc6 {[%clk 0:02:37.6]} 5. a3 {[%clk
0:02:58.2]} 5... d6 {[%clk 0:02:36.7]} 6. Qc2 {[%clk 0:02:57.7]} 6... d5 {[%clk
0:02:36.6]} 7. cxd5 {[%clk 0:02:56.6]} 7... Qxd5 {[%clk 0:02:37.5]} 8. e3 {[%clk
0:02:54.1]} 8... Be6 {[%clk 0:02:37.2]} 9. Be2 {[%clk 0:02:46.9]} 9... Nxe5
{[%clk 0:02:34.2]} 10. Nxe5 {[%clk 0:02:46.5]} 10... Qxe5 {[%clk 0:02:34.2]} 11.
f4 {[%clk 0:02:38.8]} 11... Qa5+ {[%clk 0:02:21.4]} 12. b4 {[%clk 0:02:19]}
12... Qd5 {[%clk 0:01:35.1]} 13. O-O {[%clk 0:01:58.7]} 13... O-O-O {[%clk
0:01:31.1]} 14. Rd1 {[%clk 0:01:48.4]} 14... Qc6 {[%clk 0:01:22]} 15. Rxd8+
{[%clk 0:01:40.3]} 15... Kxd8 {[%clk 0:01:22.9]} 16. Qxc6 {[%clk 0:01:39.3]}
16... bxc6 {[%clk 0:01:23.8]} 17. Nd2 {[%clk 0:01:33.1]} 17... Nc3 {[%clk
0:01:19]} 18. Bf3 {[%clk 0:01:31.9]} 18... c5 {[%clk 0:01:19]} 19. bxc5 {[%clk
0:01:11]} 19... Bxc5 {[%clk 0:01:19.9]} 20. Ne4 {[%clk 0:01:10.7]} 20... Nxe4
{[%clk 0:01:16.1]} 21. Bxe4 {[%clk 0:01:10.2]} 21... Ke7 {[%clk 0:01:14.9]} 22.
Kf2 {[%clk 0:01:07.1]} 22... Rd8 {[%clk 0:01:12.7]} 23. Kf3 {[%clk 0:00:57.2]}
23... f5 {[%clk 0:01:07.8]} 24. Bc2 {[%clk 0:00:50.9]} 24... Bd5+ {[%clk
0:01:06.8]} 25. Kf2 {[%clk 0:00:50.6]} 25... Be4 {[%clk 0:01:06.3]} 26. Bxe4
{[%clk 0:00:36.6]} 26... fxe4 {[%clk 0:01:07.2]} 27. Ke2 {[%clk 0:00:37]} 27...
Rd3 {[%clk 0:01:05.9]} 28. a4 {[%clk 0:00:36.8]} 28... Rc3 {[%clk 0:00:57.8]}
29. Rb1 {[%clk 0:00:28.6]} 29... Rc2+ {[%clk 0:00:53.5]} 30. Bd2 {[%clk
0:00:27.9]} 30... Ra2 {[%clk 0:00:53.3]} 31. Rb5 {[%clk 0:00:24.9]} 31... Kd6
{[%clk 0:00:50.4]} 32. a5 {[%clk 0:00:20]} 32... a6 {[%clk 0:00:35.8]} 33. Rb6+
{[%clk 0:00:20]} 33... cxb6 {[%clk 0:00:34.8]} 0-1

[Event "Late-Titled-Tuesday-Blitz-May-07-2024"]
[Site "Chess.com"]
[Date "2024.05.07"]
[Round "9"]
[White "youngdinousaur"]
[Black "Walter_White_Poland"]
[Result "1-0"]
[WhiteElo "2329"]
[BlackElo "2408"]
[TimeControl "180+1"]
[EndTime "15:46:07 PDT"]
[Termination "youngdinousaur won on time"]

1. d4 {[%clk 0:03:00.9]} 1... d5 {[%clk 0:02:55]} 2. Nf3 {[%clk 0:03:00.2]} 2...
Nf6 {[%clk 0:02:54.1]} 3. Bf4 {[%clk 0:03:00.7]} 3... c5 {[%clk 0:02:52.8]} 4.
e3 {[%clk 0:03:01.2]} 4... Nc6 {[%clk 0:02:52.7]} 5. c3 {[%clk 0:03:01.3]} 5...
Qb6 {[%clk 0:02:52.5]} 6. Qc2 {[%clk 0:03:01.9]} 6... g6 {[%clk 0:02:49.8]} 7.
Nbd2 {[%clk 0:03:00.9]} 7... Bf5 {[%clk 0:02:49]} 8. dxc5 {[%clk 0:03:00.5]}
8... Qxc5 {[%clk 0:02:40.5]} 9. Qb3 {[%clk 0:03:00]} 9... O-O-O {[%clk 0:02:03]}
10. Ne5 {[%clk 0:02:43.4]} 10... Nh5 {[%clk 0:01:26.1]} 11. Nxf7 {[%clk
0:02:17.3]} 11... Nxf4 {[%clk 0:01:24.8]} 12. exf4 {[%clk 0:02:18]} 12... e5
{[%clk 0:01:19.5]} 13. Nxd8 {[%clk 0:02:00.3]} 13... Nxd8 {[%clk 0:01:05.6]} 14.
fxe5 {[%clk 0:01:58.4]} 14... Bh6 {[%clk 0:01:03.6]} 15. Nf3 {[%clk 0:01:57.6]}
15... Be4 {[%clk 0:00:52.4]} 16. Be2 {[%clk 0:01:56.6]} 16... Ne6 {[%clk
0:00:46.9]} 17. Qb4 {[%clk 0:01:49.6]} 17... Qxb4 {[%clk 0:00:27.2]} 18. cxb4
{[%clk 0:01:50.5]} 18... Nf4 {[%clk 0:00:26.9]} 19. g3 {[%clk 0:01:46.7]} 19...
Nxe2 {[%clk 0:00:24.2]} 20. Kxe2 {[%clk 0:01:47.6]} 20... Kd7 {[%clk 0:00:18.4]}
21. Rhe1 {[%clk 0:01:41.3]} 21... Rc8 {[%clk 0:00:13.8]} 22. Nd4 {[%clk
0:01:40.4]} 22... Rc4 {[%clk 0:00:12.9]} 23. Nb3 {[%clk 0:01:30.3]} 23... Rc2+
{[%clk 0:00:10.7]} 24. Kf1 {[%clk 0:01:30.2]} 24... Rxb2 {[%clk 0:00:08.1]} 25.
Nc5+ {[%clk 0:01:19.6]} 25... Ke7 {[%clk 0:00:08.1]} 26. Nxe4 {[%clk 0:01:20.5]}
26... dxe4 {[%clk 0:00:08.4]} 27. Rxe4 {[%clk 0:01:19.1]} 27... Bd2 {[%clk
0:00:07.7]} 28. f4 {[%clk 0:01:17.9]} 28... Bxb4 {[%clk 0:00:06.5]} 29. a4
{[%clk 0:01:17.2]} 29... Bc5 {[%clk 0:00:05.5]} 30. Re2 {[%clk 0:01:15.3]} 30...
Rb3 {[%clk 0:00:04.5]} 31. Rc2 {[%clk 0:01:13.5]} 31... b6 {[%clk 0:00:04]} 32.
a5 {[%clk 0:01:11.9]} 32... h5 {[%clk 0:00:03.7]} 33. axb6 {[%clk 0:01:11.2]}
33... axb6 {[%clk 0:00:04.6]} 34. Ra8 {[%clk 0:01:07]} 34... h4 {[%clk
0:00:03.5]} 35. Kg2 {[%clk 0:01:05.6]} 35... hxg3 {[%clk 0:00:03]} 36. hxg3
{[%clk 0:01:06.5]} 36... Ke6 {[%clk 0:00:03.1]} 37. Kh3 {[%clk 0:01:00.4]} 37...
Kf5 {[%clk 0:00:02]} 38. Ra7 {[%clk 0:00:58.1]} 38... g5 {[%clk 0:00:01.2]} 39.
Rf7+ {[%clk 0:00:57.9]} 39... Kg6 {[%clk 0:00:00.9]} 40. Rf6+ {[%clk 0:00:57.5]}
40... Kg7 {[%clk 0:00:00.5]} 41. Kg4 {[%clk 0:00:58.1]} 1-0

[Event "Late-Titled-Tuesday-Blitz-May-07-2024"]
[Site "Chess.com"]
[Date "2024.05.07"]
[Round "9"]
[White "Naoki"]
[Black "Yaacovn"]
[Result "0-1"]
[WhiteElo "2603"]
[BlackElo "2849"]
[TimeControl "180+1"]
[EndTime "15:46:08 PDT"]
[Termination "Yaacovn won by resignation"]

1. d4 {[%clk 0:02:58.5]} 1... Nf6 {[%clk 0:02:59.5]} 2. Nc3 {[%clk 0:02:58.8]}
2... d5 {[%clk 0:02:59.7]} 3. Bf4 {[%clk 0:02:59.2]} 3... c6 {[%clk 0:03:00.1]}
4. e3 {[%clk 0:02:59.1]} 4... Qb6 {[%clk 0:03:00.7]} 5. Rb1 {[%clk 0:02:57]}
5... Bf5 {[%clk 0:02:59.9]} 6. f3 {[%clk 0:02:54.8]} 6... h5 {[%clk 0:02:59.8]}
7. Bd3 {[%clk 0:02:54.1]} 7... Bxd3 {[%clk 0:02:59.7]} 8. cxd3 {[%clk
0:02:54.7]} 8... Nbd7 {[%clk 0:02:59.3]} 9. Nge2 {[%clk 0:02:52.8]} 9... h4
{[%clk 0:02:59.1]} 10. e4 {[%clk 0:02:43.8]} 10... e6 {[%clk 0:02:54.3]} 11. O-O
{[%clk 0:02:40.7]} 11... Be7 {[%clk 0:02:53.5]} 12. Kh1 {[%clk 0:02:33.7]} 12...
a5 {[%clk 0:02:45.9]} 13. a3 {[%clk 0:02:32.3]} 13... Nh5 {[%clk 0:02:43.8]} 14.
Be3 {[%clk 0:02:25.7]} 14... Nf8 {[%clk 0:02:34.6]} 15. b4 {[%clk 0:02:03.5]}
15... axb4 {[%clk 0:02:34.2]} 16. axb4 {[%clk 0:02:04.4]} 16... Qd8 {[%clk
0:02:31.9]} 17. b5 {[%clk 0:02:00.3]} 17... Ng6 {[%clk 0:02:31.7]} 18. bxc6
{[%clk 0:01:58.6]} 18... bxc6 {[%clk 0:02:31.8]} 19. f4 {[%clk 0:01:41.5]} 19...
f5 {[%clk 0:02:24.5]} 20. Kg1 {[%clk 0:01:32]} 20... Nf6 {[%clk 0:02:21.9]} 21.
h3 {[%clk 0:01:28.1]} 21... Kf7 {[%clk 0:02:18.9]} 22. Rb7 {[%clk 0:01:10.8]}
22... Qa5 {[%clk 0:02:12.8]} 23. Qb3 {[%clk 0:01:08.7]} 23... Qa6 {[%clk
0:02:06.2]} 24. Rd1 {[%clk 0:01:00.3]} 24... Rhc8 {[%clk 0:02:00.3]} 25. Kh2
{[%clk 0:00:53.8]} 25... Ne8 {[%clk 0:01:57.5]} 26. Ng1 {[%clk 0:00:43.4]} 26...
Nd6 {[%clk 0:01:55.7]} 27. Rb6 {[%clk 0:00:44.1]} 27... Qa3 {[%clk 0:01:53.9]}
28. e5 {[%clk 0:00:39.8]} 28... Nb5 {[%clk 0:01:39.9]} 29. Qxa3 {[%clk
0:00:36.5]} 29... Nxa3 {[%clk 0:01:39]} 30. Nf3 {[%clk 0:00:22]} 30... Nc2
{[%clk 0:01:38.7]} 31. Bf2 {[%clk 0:00:22.1]} 31... Rc7 {[%clk 0:01:29.8]} 32.
Rb2 {[%clk 0:00:21.2]} 32... Na3 {[%clk 0:01:19.2]} 33. Ra1 {[%clk 0:00:21.1]}
33... Rca7 {[%clk 0:01:18.1]} 34. Rba2 {[%clk 0:00:21.6]} 34... Nb5 {[%clk
0:01:17.7]} 35. Rxa7 {[%clk 0:00:19.2]} 35... Rxa7 {[%clk 0:01:18.2]} 36. Rxa7
{[%clk 0:00:19]} 36... Nxa7 {[%clk 0:01:19.1]} 37. Kg1 {[%clk 0:00:16]} 37...
Nb5 {[%clk 0:01:19.4]} 38. Ne2 {[%clk 0:00:14.9]} 38... Na3 {[%clk 0:01:16.2]}
39. Kf1 {[%clk 0:00:14.4]} 39... Nc2 {[%clk 0:01:16.6]} 40. Neg1 {[%clk
0:00:12.2]} 40... Nxf4 {[%clk 0:01:13.8]} 41. Bxh4 {[%clk 0:00:06.3]} 41... Bxh4
{[%clk 0:01:13.7]} 42. Nxh4 {[%clk 0:00:07.2]} 42... Nxd4 {[%clk 0:01:13.6]} 43.
Nhf3 {[%clk 0:00:07.3]} 43... Nxf3 {[%clk 0:01:13]} 44. Nxf3 {[%clk 0:00:08.2]}
44... Nxd3 {[%clk 0:01:13.4]} 45. Ke2 {[%clk 0:00:09.1]} 45... Nf4+ {[%clk
0:01:13.2]} 46. Kf2 {[%clk 0:00:09.7]} 46... c5 {[%clk 0:01:13.4]} 47. g3 {[%clk
0:00:10.3]} 47... Nd3+ {[%clk 0:01:11.1]} 48. Ke3 {[%clk 0:00:10.5]} 48... Nb4
{[%clk 0:01:10.7]} 49. Ng5+ {[%clk 0:00:10.4]} 49... Ke7 {[%clk 0:01:10.9]} 50.
h4 {[%clk 0:00:10.2]} 50... Nc6 {[%clk 0:01:11.1]} 51. Nf3 {[%clk 0:00:10.5]}
51... c4 {[%clk 0:01:10.1]} 52. Kf4 {[%clk 0:00:09.8]} 52... d4 {[%clk 0:01:10]}
53. h5 {[%clk 0:00:09.1]} 53... c3 {[%clk 0:01:05.2]} 54. Ne1 {[%clk 0:00:09.5]}
54... Nb4 {[%clk 0:01:05.7]} 0-1